bitfinex/quotes_BTCUSD_20240915
["timestamp","ask_amount","ask_price","bid_price","bid_amount"]
[1726385261497,0.179523,60329.0,60328.0,0.98646045]
[1726385267813,0.179523,60329.0,60328.0,0.98650304]
[1726385269935,0.000823,60329.0,60328.0,1.44672049]
[1726385270406,0.000823,60329.0,60328.0,1.38361758]
[1726385270648,0.000823,60329.0,60328.0,1.47151025]
[1726385270869,0.000823,60329.0,60328.0,1.44876975]
[1726385271083,0.000823,60329.0,60328.0,1.47148446]
[1726385271783,0.000823,60329.0,60328.0,1.34724281]
[1726385272676,0.000823,60329.0,60328.0,1.44660728]
[1726385274279,0.000823,60329.0,60328.0,1.44661916]
[1726385277629,0.000823,60329.0,60328.0,1.3245281]
[1726385278059,0.000823,60329.0,60328.0,1.34728626]
[1726385280996,0.000823,60329.0,60328.0,1.42177435]
[1726385281216,0.000823,60329.0,60328.0,1.42159875]
[1726385281861,0.000823,60329.0,60328.0,1.95111975]
[1726385282422,0.000823,60329.0,60328.0,2.04625027]
[1726385283062,0.000823,60329.0,60328.0,1.97176218]
[1726385284133,0.000823,60329.0,60328.0,1.87376218]
[1726385285607,0.0268254,60329.0,60328.0,1.87376218]
[1726385285819,0.000823,60329.0,60328.0,1.87376218]
[1726385286865,0.000823,60329.0,60328.0,1.54224118]
[1726385287069,0.178823,60329.0,60328.0,1.54224118]
[1726385289973,0.178823,60329.0,60328.0,1.50901118]
[1726385290424,0.178823,60329.0,60328.0,1.5091033]
[1726385291283,0.178823,60329.0,60328.0,1.5423333]
[1726385291523,0.178823,60329.0,60328.0,1.54233318]
[1726385293478,0.178823,60329.0,60328.0,1.51965862]
[1726385293682,0.178823,60329.0,60328.0,1.17757103]
[1726385295196,0.178823,60329.0,60328.0,1.22722306]
[1726385297001,0.178823,60329.0,60328.0,1.22724903]
[1726385297860,0.20482663,60329.0,60328.0,1.22724903]
[1726385298274,0.178823,60329.0,60328.0,1.22724903]
[1726385298924,0.178823,60329.0,60328.0,1.20424903]
[1726385299593,0.178823,60329.0,60328.0,1.2250072]
[1726385301139,0.178823,60329.0,60328.0,1.17534904]
[1726385301356,0.178823,60329.0,60328.0,0.8727219]
[1726385301564,0.178823,60329.0,60328.0,0.89348017]
[1726385301779,0.20482677,60329.0,60328.0,0.89348017]
[1726385302009,0.20482677,60329.0,60328.0,0.82306987]
[1726385302219,0.20482677,60329.0,60328.0,0.8727219]
[1726385303133,0.20482677,60329.0,60328.0,0.82306987]
[1726385303365,0.20482677,60329.0,60328.0,0.8727219]
[1726385303585,0.178823,60329.0,60328.0,0.8727219]
[1726385304051,0.178823,60329.0,60328.0,0.49154887]
[1726385304300,0.178823,60329.0,60328.0,0.46886562]
[1726385304477,0.178823,60329.0,60328.0,0.30310562]
[1726385304762,0.178823,60329.0,60328.0,0.46886562]
[1726385305832,0.178823,60329.0,60328.0,0.4915808]
[1726385306062,0.178823,60329.0,60328.0,0.54121941]
[1726385306510,0.178823,60329.0,60328.0,0.49156738]
[1726385306736,0.20482715,60329.0,60328.0,0.49156738]
[1726385306935,0.178823,60329.0,60328.0,0.49157086]
[1726385307190,0.178823,60329.0,60328.0,0.46886562]
[1726385307419,0.178823,60329.0,60328.0,0.49157093]
[1726385308165,0.178823,60329.0,60328.0,0.54122296]
[1726385308385,0.178823,60329.0,60328.0,0.49157093]
[1726385308590,0.178823,60329.0,60328.0,0.54122296]
[1726385309227,0.178823,60329.0,60328.0,0.51851765]
[1726385309839,0.178823,60329.0,60328.0,0.54104366]
[1726385310055,0.178823,60329.0,60328.0,0.49139163]
[1726385310902,0.178823,60329.0,60328.0,0.54107649]
[1726385311122,0.2048272,60329.0,60328.0,0.51854439]
[1726385311320,0.2048272,60329.0,60328.0,0.54107613]
[1726385311910,0.2048272,60329.0,60328.0,0.49139736]
[1726385312385,0.2048272,60329.0,60328.0,0.54108013]
[1726385312833,0.2048272,60329.0,60328.0,0.54108183]
[1726385312967,0.2048272,60329.0,60328.0,0.49139736]
[1726385313382,0.178823,60329.0,60328.0,0.54108231]
[1726385313868,0.178823,60329.0,60328.0,0.49139736]
[1726385315031,0.178823,60329.0,60328.0,0.54108842]
[1726385315303,0.178823,60329.0,60328.0,0.49139736]
[1726385315755,0.178823,60329.0,60328.0,0.56591519]
[1726385315937,0.178823,60329.0,60328.0,0.49139736]
[1726385316156,0.178823,60329.0,60328.0,0.56591519]
[1726385316905,0.178823,60329.0,60328.0,0.49139736]
[1726385317104,0.178823,60329.0,60328.0,0.82291836]
[1726385317314,0.178823,60329.0,60328.0,0.54338345]
[1726385317537,0.178823,60329.0,60328.0,0.49140203]
[1726385318175,0.178823,60329.0,60328.0,0.56591986]
[1726385318894,0.178823,60329.0,60328.0,0.49140203]
[1726385319796,0.178823,60329.0,60328.0,0.56591986]
[1726385320224,0.178823,60329.0,60328.0,0.49140203]
[1726385320450,0.178823,60329.0,60328.0,0.56594546]
[1726385320897,0.178823,60329.0,60328.0,0.491401]
[1726385321342,0.178823,60329.0,60328.0,0.51856373]
[1726385321563,0.178823,60329.0,60328.0,0.39140479]
[1726385321773,0.178823,60329.0,60328.0,0.44110401]
[1726385323471,0.178823,60329.0,60328.0,0.39140479]
[1726385323890,0.178823,60329.0,60328.0,0.72292579]
[1726385324316,0.178823,60329.0,60328.0,0.75008771]
[1726385324523,0.178823,60329.0,60328.0,0.70142713]
[1726385324952,0.178823,60329.0,60328.0,0.36990613]
[1726385325653,0.178823,60329.0,60328.0,0.70142713]
[1726385326117,0.178823,60329.0,60328.0,0.27477561]
[1726385326363,0.178823,60329.0,60328.0,0.70142713]
[1726385326594,0.20482754,60329.0,60328.0,0.70142713]
[1726385327778,0.20482754,60329.0,60328.0,0.70133948]
[1726385331140,0.20482754,60329.0,60328.0,0.6788843]
[1726385331352,0.20482754,60329.0,60328.0,0.7013441]
[1726385331575,0.20482754,60329.0,60328.0,0.6788843]
[1726385331780,0.20482754,60329.0,60328.0,0.70134409]
[1726385332216,0.20482754,60329.0,60328.0,1.03286509]
[1726385334509,0.20482754,60329.0,60328.0,1.0104053]
[1726385334829,0.20482754,60329.0,60328.0,1.08258454]
[1726385335220,0.20482754,60329.0,60328.0,1.03287675]
[1726385335429,0.20482754,60329.0,60328.0,1.10743843]
[1726385335632,0.20482754,60329.0,60328.0,1.10743098]
[1726385336728,0.20482754,60329.0,60328.0,1.0328693]
[1726385336937,0.20482754,60329.0,60328.0,1.08257653]
[1726385337153,0.20482754,60329.0,60328.0,1.0328693]
[1726385337370,0.20482754,60329.0,60328.0,1.10743098]
[1726385337572,0.20482754,60329.0,60328.0,1.0328693]
[1726385337780,0.20482754,60329.0,60328.0,1.10743098]
[1726385338429,0.20482754,60329.0,60328.0,1.10744657]
[1726385338650,0.20482754,60329.0,60328.0,1.03288489]
[1726385339074,0.20482754,60329.0,60328.0,1.10744657]
[1726385339529,0.20482754,60329.0,60328.0,1.10744901]
[1726385339764,0.20482754,60329.0,60328.0,1.03288489]
[1726385340377,0.20482754,60329.0,60328.0,1.10744889]
[1726385341183,0.20482754,60329.0,60328.0,1.0849693]
[1726385341452,0.20482754,60329.0,60328.0,1.10745613]
[1726385341652,0.20482754,60329.0,60328.0,1.1074544]
[1726385341912,0.20482754,60329.0,60328.0,1.0328904]
[1726385342620,0.20482754,60329.0,60328.0,1.08497162]
[1726385342833,0.20482754,60329.0,60328.0,1.10745535]
[1726385343481,0.20482754,60329.0,60328.0,1.03288898]
[1726385343727,0.20482754,60329.0,60328.0,1.10745498]
[1726385344399,0.20482754,60329.0,60328.0,1.0849713]
[1726385344625,0.20482754,60329.0,60328.0,1.03289026]
[1726385344850,0.20482754,60329.0,60328.0,1.10745626]
[1726385345781,0.20482754,60329.0,60328.0,1.03289026]
[1726385346251,0.20482754,60329.0,60328.0,1.10745626]
[1726385346900,0.20482754,60329.0,60328.0,1.13231209]
[1726385347118,0.20482754,60329.0,60328.0,1.03289026]
[1726385347873,0.20482754,60329.0,60328.0,1.15715342]
[1726385348092,0.02682754,60329.0,60328.0,1.15715342]
[1726385348524,0.02682754,60329.0,60328.0,1.03287613]
[1726385350080,0.02682754,60329.0,60328.0,1.15715342]
[1726385350297,0.02682754,60329.0,60328.0,1.03287613]
[1726385350502,0.02682754,60329.0,60328.0,1.13226382]
[1726385350720,0.02682754,60329.0,60328.0,1.03287613]
[1726385351424,0.02682754,60329.0,60328.0,1.1097919]
[1726385351655,0.02682754,60329.0,60328.0,1.13222927]
[1726385352708,0.02682754,60329.0,60328.0,1.03284267]
[1726385353313,0.02682754,60329.0,60328.0,1.15707593]
[1726385354202,0.000823,60329.0,60328.0,1.15707593]
[1726385354820,0.000823,60329.0,60328.0,1.13221583]
[1726385355032,0.000823,60329.0,60328.0,1.13221148]
[1726385355252,0.000823,60329.0,60328.0,1.03283832]
[1726385356818,0.000823,60329.0,60328.0,1.13221138]
[1726385357246,0.000823,60329.0,60328.0,1.03283832]
[1726385357460,0.000823,60329.0,60328.0,1.13221414]
[1726385357917,0.000823,60329.0,60328.0,2.09508407]
[1726385359075,0.000823,60329.0,60328.0,2.06708407]
[1726385359318,0.000823,60329.0,60328.0,2.08108407]
[1726385359779,0.000823,60329.0,60328.0,2.06708407]
[1726385360004,0.000823,60329.0,60328.0,2.08108407]
[1726385360765,0.000823,60329.0,60328.0,2.09508407]
[1726385360975,0.000823,60329.0,60328.0,2.08108407]
[1726385361599,0.000823,60329.0,60328.0,2.01907709]
[1726385362060,0.000823,60329.0,60328.0,2.03307709]
[1726385363720,0.000823,60329.0,60328.0,2.09507518]
[1726385364142,0.000823,60329.0,60328.0,2.26631099]
[1726385364981,0.000823,60329.0,60328.0,2.26599813]
[1726385367452,0.000823,60329.0,60328.0,2.25199813]
[1726385367853,0.000823,60329.0,60328.0,2.26599813]
[1726385368285,0.000823,60329.0,60328.0,2.25199813]
[1726385368492,0.000823,60329.0,60328.0,2.26599813]
[1726385370367,0.000823,60329.0,60328.0,2.18769813]
[1726385370988,0.000823,60329.0,60328.0,2.20845298]
[1726385371837,0.000823,60329.0,60328.0,2.06677797]
[1726385372045,0.000823,60329.0,60328.0,2.08891731]
[1726385372269,0.000823,60329.0,60328.0,2.09417585]
[1726385372503,0.000823,60329.0,60328.0,2.11631534]
[1726385372731,0.000823,60329.0,60328.0,2.05431725]
[1726385373177,0.02682515,60329.0,60328.0,2.05431725]
[1726385373406,0.02682515,60329.0,60328.0,2.17831081]
[1726385374263,0.02682515,60329.0,60328.0,2.05431725]
[1726385374700,0.02682515,60329.0,60328.0,2.17831081]
[1726385377352,0.000823,60329.0,60328.0,2.17831081]
[1726385378477,0.000823,60329.0,60328.0,2.15755593]
[1726385378711,0.000823,60329.0,60328.0,2.15617184]
[1726385378935,0.000823,60329.0,60328.0,2.17826952]
[1726385380852,0.000823,60329.0,60328.0,2.17828824]
[1726385381647,0.000823,60329.0,60328.0,2.1782883]
[1726385381872,0.000823,60329.0,60328.0,2.12280654]
[1726385382091,0.000823,60329.0,60328.0,2.1782883]
[1726385382336,0.000823,60329.0,60328.0,1.86591421]
[1726385382585,0.000823,60329.0,60328.0,1.82601366]
[1726385382818,0.000823,60329.0,60328.0,1.8260079]
[1726385383275,0.000823,60329.0,60328.0,1.88800838]
[1726385384169,0.000823,60329.0,60328.0,1.88414161]
[1726385384378,0.000823,60329.0,60328.0,1.88800838]
[1726385384835,0.000823,60329.0,60328.0,1.88414161]
[1726385385325,0.000823,60329.0,60328.0,1.76012933]
[1726385386260,0.000823,60329.0,60328.0,1.76013047]
[1726385386472,0.172323,60329.0,60328.0,1.65094442]
[1726385386688,0.172323,60329.0,60328.0,1.16573018]
[1726385386902,0.172323,60329.0,60328.0,1.26497454]
[1726385387136,0.172323,60329.0,60328.0,1.16573018]
[1726385387337,0.172323,60329.0,60328.0,1.26497454]
[1726385387767,0.172323,60329.0,60328.0,1.16573018]
[1726385387991,0.172323,60329.0,60328.0,1.18873018]
[1726385388199,0.19832724,60329.0,60328.0,1.18873018]
[1726385388890,0.19832724,60329.0,60328.0,1.26318351]
[1726385389800,0.19832724,60329.0,60328.0,1.18881078]
[1726385390669,0.19832724,60329.0,60328.0,1.26327286]
[1726385391766,0.19832724,60329.0,60328.0,1.18881078]
[1726385393136,0.19832724,60329.0,60328.0,1.18881309]
[1726385394037,0.19832724,60329.0,60328.0,1.28805745]
[1726385394497,0.19832724,60329.0,60328.0,1.18881309]
[1726385395166,0.19832724,60329.0,60328.0,1.26329209]
[1726385395380,0.19832724,60329.0,60328.0,1.18881309]
[1726385396281,0.19832724,60329.0,60328.0,1.28811474]
[1726385396730,0.172323,60329.0,60328.0,1.18881309]
[1726385398331,0.172323,60329.0,60328.0,1.26329482]
[1726385399954,0.172323,60329.0,60328.0,1.18881309]
[1726385400407,0.172323,60329.0,60328.0,1.26329575]
[1726385403124,0.172323,60329.0,60328.0,1.26330696]
[1726385403327,0.172323,60329.0,60328.0,1.1888243]
[1726385404143,0.172323,60329.0,60328.0,1.26330696]
[1726385406792,0.172323,60329.0,60328.0,1.26330764]
[1726385407930,0.172323,60329.0,60328.0,1.26330115]
[1726385409007,0.172323,60329.0,60328.0,0.93178015]
[1726385409921,0.172323,60329.0,60328.0,0.85730398]
[1726385410385,0.172323,60329.0,60328.0,0.85731294]
[1726385413984,0.172323,60329.0,60328.0,0.85731505]
[1726385414455,0.172323,60329.0,60328.0,0.85731527]
[1726385415328,0.172323,60329.0,60328.0,0.52579427]
[1726385416211,0.172323,60329.0,60328.0,0.6002692]
[1726385417163,0.172323,60329.0,60328.0,0.4345092]
[1726385417368,0.172323,60329.0,60328.0,0.52579427]
[1726385417592,0.172323,60329.0,60328.0,0.52579563]
[1726385417815,0.172323,60329.0,60328.0,0.57545723]
[1726385418274,0.172323,60329.0,60328.0,0.56145723]
[1726385418506,0.172323,60329.0,60328.0,0.54745723]
[1726385418714,0.172323,60329.0,60328.0,0.56145954]
[1726385418917,0.172323,60329.0,60328.0,0.57545954]
[1726385419124,0.172323,60329.0,60328.0,0.56145954]
[1726385419342,0.172323,60329.0,60328.0,0.54745954]
[1726385419557,0.172323,60329.0,60328.0,0.57545954]
[1726385422158,0.172323,60329.0,60328.0,0.52579563]
[1726385422299,0.172323,60329.0,60328.0,0.57546325]
[1726385422508,0.172323,60329.0,60328.0,0.57546294]
[1726385423164,0.172323,60329.0,60328.0,0.52579563]
[1726385425380,0.172323,60329.0,60328.0,0.52581343]
[1726385426748,0.172323,60329.0,60328.0,0.57549067]
[1726385427978,0.172323,60329.0,60328.0,0.52581343]
[1726385428216,0.172323,60329.0,60328.0,0.57549067]
[1726385428422,0.172323,60329.0,60328.0,0.52581343]
[1726385430255,0.172323,60329.0,60328.0,0.55327054]
[1726385430699,0.172323,60329.0,60328.0,0.5035933]
[1726385431204,0.172323,60329.0,60328.0,0.55327054]
[1726385431880,0.172323,60329.0,60328.0,0.55328103]
[1726385432128,0.172323,60329.0,60328.0,0.88480203]
[1726385433284,0.172323,60329.0,60328.0,0.90711382]
[1726385433511,0.172323,60329.0,60328.0,0.88480203]
[1726385436125,0.172323,60329.0,60328.0,0.88480565]
[1726385439791,0.172323,60329.0,60328.0,0.8848048]
[1726385440943,0.172323,60329.0,60328.0,0.88480547]
[1726385441387,0.172323,60329.0,60328.0,0.9071091]
[1726385441846,0.172323,60329.0,60328.0,0.8351143]
[1726385442057,0.172323,60329.0,60328.0,0.90710619]
[1726385443611,0.172323,60329.0,60328.0,0.90965106]
[1726385443859,0.172323,60329.0,60328.0,0.93195174]
[1726385444287,0.172323,60329.0,60328.0,0.95271005]
[1726385444966,0.172323,60329.0,60328.0,0.93195174]
[1726385445391,0.172323,60329.0,60328.0,0.95270979]
[1726385447410,0.172323,60329.0,60328.0,0.87817303]
[1726385447622,0.172323,60329.0,60328.0,0.87816099]
[1726385448700,0.172323,60329.0,60328.0,0.95269984]
[1726385450511,0.172323,60329.0,60328.0,0.95270064]
[1726385450675,0.172323,60329.0,60328.0,0.95270067]
[1726385452458,0.172323,60329.0,60328.0,0.85740294]
[1726385452873,0.172323,60329.0,60328.0,0.93194259]
[1726385453283,0.172323,60329.0,60328.0,0.85740294]
[1726385453489,0.172323,60329.0,60328.0,0.82417294]
[1726385453706,0.172323,60329.0,60328.0,0.87642451]
[1726385453912,0.172323,60329.0,60328.0,0.87642745]
[1726385454140,0.172323,60329.0,60328.0,0.89871777]
[1726385454987,0.172323,60329.0,60328.0,0.82417462]
[1726385455607,0.172323,60329.0,60328.0,0.89871777]
[1726385455825,0.172323,60329.0,60328.0,0.89872226]
[1726385456712,0.172323,60329.0,60328.0,0.82417462]
[1726385456934,0.172323,60329.0,60328.0,0.89872226]
[1726385457408,0.172323,60329.0,60328.0,0.87643194]
[1726385457633,0.172323,60329.0,60328.0,0.89872075]
[1726385457876,0.172323,60329.0,60328.0,0.89872027]
[1726385460492,0.172323,60329.0,60328.0,0.89871576]
[1726385462918,0.172323,60329.0,60328.0,0.9235548]
[1726385463131,0.172323,60329.0,60328.0,0.8241686]
[1726385463378,0.172323,60329.0,60328.0,0.8987266]
[1726385463841,0.172323,60329.0,60328.0,0.8241686]
[1726385464272,0.172323,60329.0,60328.0,0.82919537]
[1726385465338,0.172323,60329.0,60328.0,0.90375511]
[1726385469993,0.172323,60329.0,60328.0,0.90375472]
[1726385471601,0.172323,60329.0,60328.0,0.82919498]
[1726385472851,0.172323,60329.0,60328.0,0.80691107]
[1726385473499,0.172323,60329.0,60328.0,0.82919513]
[1726385474395,0.172323,60329.0,60328.0,0.80691107]
[1726385474633,0.172323,60329.0,60328.0,0.829195]
[1726385478091,0.172323,60329.0,60328.0,0.80691107]
[1726385478509,0.172323,60329.0,60328.0,0.85148202]
[1726385481589,0.172323,60329.0,60328.0,1.18300302]
[1726385481809,0.172323,60329.0,60328.0,1.26013969]
[1726385481810,0.000823,60329.0,60328.0,1.26013969]
[1726385482056,0.000823,60329.0,60328.0,1.28242516]
[1726385482505,0.000823,60329.0,60328.0,0.95090498]
[1726385482937,0.000823,60329.0,60328.0,1.28242598]
[1726385484728,0.000823,60329.0,60328.0,1.26014054]
[1726385485411,0.000823,60329.0,60328.0,1.23785507]
[1726385485648,0.000823,60329.0,60328.0,1.26030311]
[1726385488594,0.000823,60329.0,60328.0,1.28515886]
[1726385489083,0.000823,60329.0,60328.0,1.13843207]
[1726385489336,0.000823,60329.0,60328.0,1.1608821]
[1726385489858,0.000823,60329.0,60328.0,1.28509891]
[1726385490110,0.000823,60329.0,60328.0,1.16085758]
[1726385490328,0.000823,60329.0,60328.0,1.17039769]
[1726385490572,0.000823,60329.0,60328.0,1.14797218]
[1726385490810,0.000823,60329.0,60328.0,1.1703901]
[1726385491045,0.000823,60329.0,60328.0,1.29462398]
[1726385491951,0.000823,60329.0,60328.0,1.1703901]
[1726385492229,0.000823,60329.0,60328.0,1.29461329]
[1726385493220,0.000823,60329.0,60328.0,1.29461869]
[1726385493221,0.094623,60329.0,60328.0,1.29461869]
[1726385493695,0.094623,60329.0,60328.0,1.1703955]
[1726385494192,0.094623,60329.0,60328.0,1.29461869]
[1726385494437,0.094623,60329.0,60328.0,1.1703955]
[1726385494913,0.094623,60329.0,60328.0,1.26977247]
[1726385495380,0.094623,60329.0,60328.0,1.1703955]
[1726385500219,0.094623,60329.0,60328.0,1.17043967]
[1726385502320,0.020023,60329.0,60328.0,1.17043967]
[1726385503702,0.020023,60329.0,60328.0,1.14797218]
[1726385503941,0.020023,60329.0,60328.0,1.17044931]
[1726385504628,0.020023,60329.0,60328.0,1.26982628]
[1726385505343,0.020846,60329.0,60328.0,1.17044931]
[1726385505544,0.020846,60329.0,60328.0,1.26982628]
[1726385506054,0.020846,60329.0,60328.0,1.2698343]
[1726385506327,0.020846,60329.0,60328.0,1.17044931]
[1726385506567,0.097946,60329.0,60328.0,1.17044931]
[1726385507026,0.097946,60329.0,60328.0,1.22251381]
[1726385507259,0.097946,60329.0,60328.0,1.24499972]
[1726385510494,0.097946,60329.0,60328.0,1.24504691]
[1726385519439,0.097946,60329.0,60328.0,1.24669291]
[1726385520767,0.097946,60329.0,60328.0,1.22415981]
[1726385521016,0.097946,60329.0,60328.0,1.24667438]
[1726385521246,0.097946,60329.0,60328.0,1.24667771]
[1726385522134,0.097946,60329.0,60328.0,1.27152107]
[1726385523049,0.097946,60329.0,60328.0,1.17213608]
[1726385523290,0.097946,60329.0,60328.0,1.27152107]
[1726385523938,0.097946,60329.0,60328.0,1.27152199]
[1726385524807,0.097946,60329.0,60328.0,1.17213608]
[1726385525716,0.097946,60329.0,60328.0,1.27152199]
[1726385526175,0.097946,60329.0,60328.0,1.17213608]
[1726385527132,0.097946,60329.0,60328.0,1.27152305]
[1726385527357,0.097946,60329.0,60328.0,1.24668584]
[1726385527580,0.097946,60329.0,60328.0,1.17213864]
[1726385527803,0.097946,60329.0,60328.0,1.27152561]
[1726385528028,0.097946,60329.0,60328.0,0.94000461]
[1726385528943,0.097946,60329.0,60328.0,0.84061764]
[1726385529198,0.097946,60329.0,60328.0,0.91516114]
[1726385529628,0.097946,60329.0,60328.0,0.91516388]
[1726385529835,0.097946,60329.0,60328.0,0.84061764]
[1726385530739,0.097946,60329.0,60328.0,0.94000461]
[1726385530943,0.097946,60329.0,60328.0,0.84061764]
[1726385531188,0.097946,60329.0,60328.0,0.91518076]
[1726385531867,0.097946,60329.0,60328.0,0.95172615]
[1726385532120,0.097946,60329.0,60328.0,0.87718181]
[1726385532988,0.097946,60329.0,60328.0,0.95172499]
[1726385533423,0.097946,60329.0,60328.0,0.95172782]
[1726385533879,0.097946,60329.0,60328.0,0.95172953]
[1726385534107,0.097946,60329.0,60328.0,0.87718464]
[1726385534572,0.097946,60329.0,60328.0,0.97657397]
[1726385534785,0.097946,60329.0,60328.0,0.87718464]
[1726385535018,0.097946,60329.0,60328.0,0.9540319]
[1726385535233,0.097946,60329.0,60328.0,0.97656622]
[1726385536545,0.097946,60329.0,60328.0,0.87717689]
[1726385536765,0.097946,60329.0,60328.0,0.97656883]
[1726385537647,0.097946,60329.0,60328.0,0.97657103]
[1726385538523,0.097946,60329.0,60328.0,0.87717689]
[1726385538946,0.097946,60329.0,60328.0,0.95171533]
[1726385539160,0.097946,60329.0,60328.0,0.97656044]
[1726385539634,0.097946,60329.0,60328.0,0.87716166]
[1726385539857,0.097946,60329.0,60328.0,0.976564]
[1726385540485,0.097946,60329.0,60328.0,0.87716166]
[1726385540695,0.097946,60329.0,60328.0,1.00140434]
[1726385540890,0.097946,60329.0,60328.0,0.97656555]
[1726385541780,0.097946,60329.0,60328.0,0.87716166]
[1726385541976,0.097946,60329.0,60328.0,1.00140434]
[1726385542090,0.097946,60329.0,60328.0,0.9765659]
[1726385542523,0.097946,60329.0,60328.0,0.87717082]
[1726385542966,0.097946,60329.0,60328.0,0.9765757]
[1726385543410,0.12395053,60329.0,60328.0,0.9765757]
[1726385543629,0.12395053,60329.0,60328.0,0.87716969]
[1726385544888,0.12395053,60329.0,60328.0,0.9765736]
[1726385545800,0.12395053,60329.0,60328.0,0.97656119]
[1726385546252,0.12395053,60329.0,60328.0,0.87715728]
[1726385546678,0.12395053,60329.0,60328.0,0.97656041]
[1726385546889,0.12395053,60329.0,60328.0,0.87715728]
[1726385547308,0.12395053,60329.0,60328.0,0.97656135]
[1726385549073,0.12395053,60329.0,60328.0,0.95171698]
[1726385549911,0.12395053,60329.0,60328.0,0.9516949]
[1726385551825,0.12395053,60329.0,60328.0,0.95169306]
[1726385553961,0.12395053,60329.0,60328.0,0.95169733]
[1726385555019,0.12395053,60329.0,60328.0,0.95169513]
[1726385556528,0.12395053,60329.0,60328.0,0.95169412]
[1726385557186,0.12395053,60329.0,60328.0,0.95165882]
[1726385560937,0.12395053,60329.0,60328.0,0.9516583]
[1726385561377,0.12395053,60329.0,60328.0,0.95165815]
[1726385563696,0.12395053,60329.0,60328.0,0.87710607]
[1726385563879,0.12395053,60329.0,60328.0,0.95165774]
[1726385564319,0.12395053,60329.0,60328.0,0.92919424]
[1726385564514,0.12395053,60329.0,60328.0,0.95165909]
[1726385564767,0.12395053,60329.0,60328.0,0.92919424]
[1726385564968,0.12395053,60329.0,60328.0,0.95165908]
[1726385567833,0.12395053,60329.0,60328.0,0.92919424]
[1726385568046,0.12395053,60329.0,60328.0,0.95166007]
[1726385569416,0.12395053,60329.0,60328.0,0.85464257]
[1726385569622,0.12395053,60329.0,60328.0,0.87711106]
[1726385571488,0.12395053,60329.0,60328.0,0.92681303]
[1726385572529,0.12395053,60329.0,60328.0,0.87711106]
[1726385572952,0.12395053,60329.0,60328.0,0.92681357]
[1726385573372,0.12395053,60329.0,60328.0,0.87711106]
[1726385573578,0.12395053,60329.0,60328.0,0.92681358]
[1726385575352,0.12395053,60329.0,60328.0,0.87711106]
[1726385575537,0.12395053,60329.0,60328.0,0.92919635]
[1726385575736,0.12395053,60329.0,60328.0,0.95166845]
[1726385576179,0.10392753,60329.0,60328.0,0.95166845]
[1726385576394,0.10392753,60329.0,60328.0,0.97242668]
[1726385577489,0.10392753,60329.0,60328.0,0.87711921]
[1726385577705,0.10392753,60329.0,60328.0,0.97242668]
[1726385578749,0.10392753,60329.0,60328.0,0.94995004]
[1726385579003,0.10392753,60329.0,60328.0,0.97242208]
[1726385579473,0.10392753,60329.0,60328.0,0.97242824]
[1726385581465,0.10392753,60329.0,60328.0,0.92919181]
[1726385581685,0.10392753,60329.0,60328.0,0.95167499]
[1726385581883,0.10392753,60329.0,60328.0,0.89320221]
[1726385582109,0.077923,60329.0,60328.0,0.96943023]
[1726385583776,0.077923,60329.0,60328.0,0.89488099]
[1726385584000,0.077923,60329.0,60328.0,0.96943854]
[1726385584907,0.077923,60329.0,60328.0,0.92619712]
[1726385585132,0.077923,60329.0,60328.0,0.96944055]
[1726385586441,0.10392803,60329.0,60328.0,0.96944055]
[1726385591357,0.10392803,60329.0,60328.0,0.94868231]
[1726385591824,0.077923,60329.0,60328.0,0.92619712]
[1726385592270,0.077923,60329.0,60328.0,0.94868396]
[1726385592505,0.077923,60329.0,60328.0,0.96944223]
[1726385592723,0.077923,60329.0,60328.0,0.96944238]
[1726385592941,0.077923,60329.0,60328.0,0.96944236]
[1726385593160,0.077923,60329.0,60328.0,0.94868396]
[1726385593611,0.077923,60329.0,60328.0,0.92621836]
[1726385593838,0.077923,60329.0,60328.0,0.94872021]
[1726385594699,0.177823,60329.0,60328.0,0.94872021]
[1726385595412,0.20382804,60329.0,60328.0,0.94871702]
[1726385595833,0.20382804,60329.0,60328.0,0.94871745]
[1726385598207,0.20382804,60329.0,60328.0,0.94871677]
[1726385598368,0.177823,60329.0,60328.0,0.94871677]
[1726385598797,0.177823,60329.0,60328.0,0.97357614]
[1726385599033,0.177823,60329.0,60328.0,0.89489318]
[1726385599279,0.177823,60329.0,60328.0,0.99433066]
[1726385600008,0.177823,60329.0,60328.0,0.89489318]
[1726385600399,0.077923,60329.0,60328.0,0.99433066]
[1726385602544,0.077923,60329.0,60328.0,0.9943164]
[1726385602758,0.077923,60329.0,60328.0,0.97355806]
[1726385603197,0.077923,60329.0,60328.0,0.89487819]
[1726385603856,0.077923,60329.0,60328.0,0.99431567]
[1726385604076,0.077923,60329.0,60328.0,0.94869009]
[1726385605846,0.077923,60329.0,60328.0,0.92620908]
[1726385606072,0.077923,60329.0,60328.0,0.94871269]
[1726385606520,0.077923,60329.0,60328.0,0.9487113]
[1726385607204,0.077923,60329.0,60328.0,0.92620908]
[1726385607433,0.077923,60329.0,60328.0,0.9487095]
[1726385607879,0.077923,60329.0,60328.0,0.87413999]
[1726385608092,0.077923,60329.0,60328.0,0.94871027]
[1726385608953,0.077923,60329.0,60328.0,0.87413999]
[1726385609423,0.077923,60329.0,60328.0,0.92621064]
[1726385609639,0.172523,60329.0,60328.0,0.87414457]
[1726385609851,0.172523,60329.0,60328.0,0.94871564]
[1726385610278,0.172523,60329.0,60328.0,0.87414457]
[1726385611192,0.172523,60329.0,60328.0,0.94871564]
[1726385612326,0.172523,60329.0,60328.0,0.87414457]
[1726385612584,0.172523,60329.0,60328.0,0.85163957]
[1726385612805,0.172523,60329.0,60328.0,0.90135715]
[1726385614719,0.172523,60329.0,60328.0,0.56983615]
[1726385617318,0.172523,60329.0,60328.0,0.52011857]
[1726385618399,0.19852796,60329.0,60328.0,0.52011857]
[1726385641503,0.19852796,60329.0,60328.0,0.13622805]
[1726385641504,0.36428496,60329.0,60328.0,0.13622805]
[1726385641507,1.05344819,60329.0,60328.0,0.13622805]
[1726385641749,1.57186406,60329.0,60328.0,0.13622805]
[1726385641990,1.67145743,60329.0,60328.0,0.13622805]
[1726385642239,1.67145743,60329.0,60328.0,0.029646]
[1726385642240,1.64452953,60329.0,60328.0,0.029646]
[1726385642478,1.41073407,60329.0,60328.0,0.015646]
[1726385642714,1.36095823,60329.0,60328.0,0.029646]
[1726385642946,1.36095823,60329.0,60328.0,0.015646]
[1726385642947,1.4336237,60329.0,60328.0,0.015646]
[1726385643188,1.4336237,60329.0,60328.0,0.002646]
[1726385643189,1.35895823,60329.0,60328.0,0.002646]
[1726385643478,1.40871626,60329.0,60328.0,0.002646]